bitfinex/quotes_BTCUSD_20251007
["timestamp","ask_amount","ask_price","bid_price","bid_amount"]
[1759812467795,0.34814766,124550.0,124540.0,0.22724]
[1759812468196,0.33713064,124550.0,124540.0,0.22824]
[1759812469785,0.16059097,124540.0,124530.0,0.08344]
[1759812469990,0.24684303,124540.0,124530.0,0.08344]
[1759812470213,0.24890303,124540.0,124530.0,0.08344]
[1759812470892,0.25190303,124540.0,124530.0,0.31168]
[1759812471937,0.25390303,124540.0,124530.0,0.31168]
[1759812474344,0.25390303,124540.0,124530.0,0.001]
[1759812474502,0.2961984,124540.0,124530.0,0.001]
[1759812474705,0.2961984,124540.0,124530.0,0.22828]
[1759812480664,0.24871303,124540.0,124530.0,0.38888387]
[1759812481337,0.25077303,124540.0,124530.0,0.38888387]
[1759812481788,0.25390303,124540.0,124530.0,0.22828]
[1759812482245,0.25390303,124540.0,124530.0,0.001]
[1759812482497,0.25390303,124540.0,124530.0,0.31172]
[1759812482716,0.33389983,124540.0,124530.0,0.31172]
[1759812482923,0.33389983,124540.0,124530.0,0.001]
[1759812483125,0.33389983,124540.0,124530.0,0.22828]
[1759812488745,0.33389983,124540.0,124530.0,0.22828]
[1759812489543,0.83154317,124540.0,124530.0,0.001]
[1759812489754,0.83154317,124540.0,124530.0,0.22828]
[1759812489928,0.33389983,124540.0,124530.0,0.22828]
[1759812490333,0.34888762,124540.0,124530.0,0.22828]
[1759812492022,0.36616159,124540.0,124530.0,0.22828]
[1759812493143,0.37366365,124540.0,124530.0,0.22828]
[1759812493746,0.37369948,124540.0,124530.0,0.22828]
[1759812495258,0.87134282,124540.0,124530.0,0.22828]
[1759812495473,0.87135082,124540.0,124530.0,0.22828]
[1759812496077,0.89299112,124540.0,124530.0,0.22828]
[1759812496490,0.39534778,124540.0,124530.0,0.22828]
[1759812497783,0.39534849,124540.0,124530.0,0.22828]
[1759812500058,0.89299183,124540.0,124530.0,0.001]
[1759812500260,0.89299183,124540.0,124530.0,0.22828]
[1759812500853,0.89299183,124540.0,124530.0,0.001]
[1759812501402,0.89299187,124540.0,124530.0,0.001]
[1759812501828,0.39534853,124540.0,124530.0,0.001]
[1759812504288,0.39534861,124540.0,124530.0,0.001]
[1759812510416,0.31535181,124540.0,124530.0,0.001]
[1759812510647,0.27330754,124540.0,124530.0,0.001]
[1759812511075,0.27644754,124540.0,124530.0,0.001]
[1759812512572,0.27646859,124540.0,124530.0,0.001]
[1759812512773,0.27332859,124540.0,124530.0,0.001]
[1759812512970,0.32228434,124540.0,124530.0,0.001]
[1759812513441,0.32757434,124540.0,124530.0,0.001]
[1759812514125,0.10316023,124540.0,124530.0,0.16160387]
[1759812514342,0.08812206,124540.0,124530.0,0.16160387]
[1759812514559,0.08812206,124540.0,124530.0,0.50160387]
[1759812516054,0.005,124540.0,124530.0,0.50160387]
[1759812517413,0.25379303,124540.0,124530.0,0.341]
[1759812517642,0.25379303,124540.0,124530.0,0.65168]
[1759812517832,0.25379303,124540.0,124530.0,0.81228387]
[1759812518087,0.25079303,124540.0,124530.0,0.81228387]
[1759812518512,0.25079303,124540.0,124530.0,0.65168]
[1759812519222,0.25379303,124540.0,124530.0,0.65168]
[1759812519339,0.25379303,124540.0,124530.0,0.31168]
[1759812519744,0.2789707,124540.0,124530.0,0.31168]
[1759812519956,0.25379303,124540.0,124530.0,0.31168]
[1759812521376,0.25379303,124540.0,124530.0,0.001]
[1759812521582,0.25379303,124540.0,124530.0,0.22824]
[1759812523137,0.25379303,124540.0,124530.0,0.001]
[1759812523361,0.75143637,124540.0,124530.0,0.22824]
[1759812523560,0.83143317,124540.0,124530.0,0.22824]
[1759812523971,0.33378983,124540.0,124530.0,0.22824]
[1759812524173,0.83143317,124540.0,124530.0,0.22824]
[1759812525558,0.33378983,124540.0,124530.0,0.22824]
[1759812525758,0.85643317,124540.0,124530.0,0.22824]
[1759812525986,0.85643317,124540.0,124530.0,0.001]
[1759812526202,0.89625089,124540.0,124530.0,0.001]
[1759812528390,0.92640279,124540.0,124530.0,0.001]
[1759812528589,1.76404613,124540.0,124530.0,0.001]
[1759812528734,1.26640279,124540.0,124530.0,0.001]
[1759812529166,0.16061676,124520.0,124510.0,0.00636]
[1759812529353,0.16062966,124510.0,124500.0,0.08344]
[1759812529576,0.74696331,124510.0,124500.0,0.31068]
[1759812530843,0.16065547,124490.0,124480.0,0.02557789]
[1759812531055,0.16065352,124500.0,124490.0,0.08344]
[1759812532310,0.16065352,124500.0,124490.0,0.08544]
[1759812533131,0.16380352,124500.0,124490.0,0.08644]
[1759812533586,0.25005558,124500.0,124490.0,0.08644]
[1759812534879,0.25005558,124500.0,124490.0,0.08732528]
[1759812536975,0.08412206,124500.0,124490.0,0.08732528]
[1759812537144,0.08412206,124500.0,124490.0,0.24798075]
[1759812543450,0.24476463,124500.0,124490.0,0.24798075]
[1759812543623,0.08412206,124500.0,124490.0,0.24798075]
[1759812549700,0.001,124500.0,124490.0,0.58798075]
[1759812549909,0.001,124500.0,124490.0,1.10212775]
[1759812550112,0.001,124500.0,124490.0,1.12622762]
[1759812552261,0.001,124500.0,124490.0,1.04278762]
[1759812552435,0.001,124500.0,124490.0,1.35354762]
[1759812556338,0.001,124500.0,124490.0,1.35350762]
[1759812559304,0.001,124500.0,124490.0,1.04278762]
[1759812559507,0.001,124500.0,124490.0,1.35350762]
[1759812560974,0.001,124500.0,124490.0,1.04278762]
[1759812561174,0.001,124500.0,124490.0,0.97390862]
[1759812561375,0.00603,124500.0,124490.0,1.04030862]
[1759812561795,0.001,124500.0,124490.0,1.04030862]
[1759812562279,0.001,124500.0,124490.0,0.83936062]
[1759812563146,0.001,124500.0,124490.0,0.52864062]
[1759812563394,0.001,124500.0,124490.0,0.83936062]
[1759812569182,0.001,124500.0,124490.0,0.52864062]
[1759812569364,0.001,124500.0,124490.0,0.83936062]
[1759812576046,0.001,124500.0,124490.0,1.92584062]
[1759812576252,0.001,124500.0,124490.0,1.89727662]
[1759812577290,0.001,124500.0,124490.0,1.86971862]
[1759812578728,0.08925206,124500.0,124490.0,0.83928062]
[1759812579607,0.08925206,124500.0,124490.0,0.81518075]
[1759812580137,0.08412206,124500.0,124490.0,0.81518075]
[1759812585671,0.001,124500.0,124490.0,0.81518075]
[1759812585886,0.001,124500.0,124490.0,1.84259575]
[1759812586704,0.001,124500.0,124490.0,1.86669499]
[1759812587787,0.001,124500.0,124490.0,1.34028999]
[1759812594335,0.001,124500.0,124490.0,1.37044189]
[1759812595145,0.001,124500.0,124490.0,1.05980189]
[1759812595291,0.001,124500.0,124490.0,1.37048189]
[1759812605003,4.964e-05,124520.0,124510.0,0.50062966]
[1759812605211,4.964e-05,124520.0,124510.0,2.84490712]
[1759812605638,4.964e-05,124520.0,124510.0,2.86900351]
[1759812606272,4.964e-05,124520.0,124510.0,2.85770651]
[1759812606565,4.964e-05,124520.0,124510.0,2.83718251]
[1759812607207,4.964e-05,124520.0,124510.0,1.91448751]
[1759812607552,4.964e-05,124520.0,124510.0,1.99792751]
[1759812607739,4.964e-05,124520.0,124510.0,1.99992751]
[1759812608576,0.00104964,124520.0,124510.0,2.00092751]
[1759812610630,0.00104964,124520.0,124510.0,1.82750651]
[1759812610995,0.00603964,124520.0,124510.0,1.18505351]
[1759812611236,0.00302964,124520.0,124510.0,1.16095712]
[1759812611375,0.00104964,124520.0,124510.0,1.16095712]
[1759812612166,0.00104964,124520.0,124510.0,0.98930512]
[1759812613458,0.00104964,124520.0,124510.0,0.67870512]
[1759812613788,0.00104964,124520.0,124510.0,0.81471812]
[1759812614129,0.00104964,124520.0,124510.0,0.91512912]
[1759812614329,0.00104964,124520.0,124510.0,0.81471812]
[1759812614546,0.00104964,124520.0,124510.0,1.03354712]
[1759812615513,0.00104964,124520.0,124510.0,0.81471812]
[1759812615717,0.00611964,124520.0,124510.0,0.83881451]
[1759812616263,0.00313964,124520.0,124510.0,0.83881451]
[1759812616690,0.00104964,124520.0,124510.0,0.83881451]
[1759812616890,0.00104964,124520.0,124510.0,1.08137051]
[1759812617092,0.00313964,124520.0,124510.0,0.69527051]
[1759812617298,0.00024548,124530.0,124520.0,0.19076866]
[1759812617513,0.00024548,124530.0,124520.0,3.22601466]
[1759812617910,0.00024548,124530.0,124520.0,3.25010662]
[1759812618706,0.00024548,124530.0,124520.0,3.67342662]
[1759812618917,0.00024548,124530.0,124520.0,3.73430231]
[1759812619991,0.00124548,124530.0,124520.0,3.73530231]
[1759812620478,0.00024548,124530.0,124520.0,3.73430231]
[1759812620686,0.00024548,124530.0,124520.0,3.81742437]
[1759812620896,0.00124548,124530.0,124520.0,3.82142437]
[1759812622854,0.00124548,124530.0,124520.0,3.82171447]
[1759812627938,0.00124548,124530.0,124520.0,3.17723447]
[1759812628139,0.00124548,124530.0,124520.0,3.82159447]
[1759812629089,0.00124548,124530.0,124520.0,3.17723447]
[1759812629457,0.00124548,124530.0,124520.0,3.82159447]
[1759812629896,0.00124548,124530.0,124520.0,3.17723447]
[1759812630062,0.00124548,124530.0,124520.0,3.82159447]
[1759812634842,0.00124548,124530.0,124520.0,3.17723447]
[1759812635044,0.00124548,124530.0,124520.0,3.82155447]
[1759812636295,0.00124548,124530.0,124520.0,3.17723447]
[1759812636630,0.00124548,124530.0,124520.0,3.82155447]
[1759812638981,0.00124548,124530.0,124520.0,3.82151447]
[1759812639795,0.00330548,124530.0,124520.0,2.10825941]
[1759812639996,0.00635548,124530.0,124520.0,2.46568541]
[1759812640381,0.00124548,124530.0,124520.0,2.46568541]
[1759812640773,0.00124548,124530.0,124520.0,2.04848541]
[1759812640977,0.00124548,124530.0,124520.0,2.05985841]
[1759812642639,0.00124548,124530.0,124520.0,1.41557841]
[1759812642848,0.00124548,124530.0,124520.0,2.05985841]
[1759812643895,0.00635548,124530.0,124520.0,0.88584475]
[1759812644107,0.00635548,124530.0,124520.0,0.59587451]
[1759812644319,0.00635548,124530.0,124520.0,0.53499882]
[1759812644466,0.00635548,124530.0,124520.0,0.84551882]
[1759812644677,0.00635548,124530.0,124520.0,0.50551882]
[1759812644877,0.00635548,124530.0,124520.0,0.84551882]
[1759812645304,0.00635548,124530.0,124520.0,1.03191682]
[1759812645462,0.00635548,124530.0,124520.0,0.53499882]
[1759812645663,0.00635548,124530.0,124520.0,0.84551882]
[1759812645868,0.16695935,124530.0,124520.0,0.84551882]
[1759812646560,0.00635548,124530.0,124520.0,0.84551882]
[1759812647189,0.00330548,124530.0,124520.0,0.84551882]
[1759812647393,0.00124548,124530.0,124520.0,0.84551882]
[1759812649676,0.00642548,124530.0,124520.0,0.84551882]
[1759812649877,0.00334548,124530.0,124520.0,0.84551882]
[1759812650498,0.00124548,124530.0,124520.0,0.84551882]
[1759812652448,0.00334548,124530.0,124520.0,0.84551882]
[1759812652614,0.00124548,124530.0,124520.0,0.84551882]
[1759812654192,0.00124548,124530.0,124520.0,0.53499882]
[1759812654396,0.00124548,124530.0,124520.0,0.84551882]
[1759812656139,0.00334548,124530.0,124520.0,0.84551882]
[1759812656343,0.00642548,124530.0,124520.0,0.84551882]
[1759812656543,0.00124548,124530.0,124520.0,0.84551882]
[1759812658632,0.00124548,124530.0,124520.0,0.37438206]
[1759812658633,0.25015141,124530.0,124520.0,0.37438206]
[1759812658852,0.25015141,124530.0,124520.0,0.3208101]
[1759812659612,0.25015141,124530.0,124520.0,0.3148101]
[1759812659820,0.25215141,124530.0,124520.0,0.3148101]
[1759812660173,0.25115141,124530.0,124520.0,0.3108101]
[1759812660395,0.25215141,124530.0,124520.0,0.3118101]
[1759812662768,0.25215141,124530.0,124520.0,0.0012901]
[1759812662995,0.25215141,124530.0,124520.0,0.3118101]
[1759812666400,0.25215141,124530.0,124520.0,0.0012901]
[1759812666604,0.25215141,124530.0,124520.0,0.3118501]
[1759812667413,0.25215141,124530.0,124520.0,0.2283701]
[1759812667626,0.25215141,124530.0,124520.0,0.0012901]
[1759812668117,0.25215141,124530.0,124520.0,0.3118101]
[1759812669296,0.29342568,124530.0,124520.0,0.0012901]
[1759812669509,0.29342568,124530.0,124520.0,0.3118501]
[1759812670720,0.29342568,124530.0,124520.0,0.0012901]
[1759812670935,0.29342568,124530.0,124520.0,0.2283701]
[1759812671116,0.29342568,124530.0,124520.0,0.3118101]
[1759812671323,0.25215141,124530.0,124520.0,0.3118101]
[1759812673084,0.25215141,124530.0,124520.0,0.32934735]
[1759812673684,0.25215141,124530.0,124520.0,0.3118101]
[1759812675856,0.25215141,124530.0,124520.0,0.32918998]
[1759812677166,0.29107455,124530.0,124520.0,0.3118101]
[1759812677815,0.25215141,124530.0,124520.0,0.3118101]
[1759812678786,0.25215141,124530.0,124520.0,0.32876031]
[1759812680685,0.25215141,124530.0,124520.0,0.3118101]
[1759812682667,0.25215141,124530.0,124520.0,0.3118501]
[1759812686266,0.25215141,124530.0,124520.0,0.0012901]
[1759812686470,0.25215141,124530.0,124520.0,0.3118501]
[1759812690389,0.25215141,124530.0,124520.0,0.2284101]
[1759812690592,0.25215141,124530.0,124520.0,0.3118501]
[1759812691395,0.25215141,124530.0,124520.0,0.3118101]
[1759812693806,0.33214821,124530.0,124520.0,0.3118101]
[1759812694157,0.25215141,124530.0,124520.0,0.3118101]
[1759812695246,0.25215141,124530.0,124520.0,0.0012901]
[1759812695458,0.25215141,124530.0,124520.0,0.2283701]
[1759812722676,0.25215141,124530.0,124520.0,0.0012901]
[1759812722886,0.25215141,124530.0,124520.0,0.2283301]
[1759812724105,0.30006621,124530.0,124520.0,0.2283301]
[1759812727969,0.25215141,124530.0,124520.0,0.2283301]
[1759812728273,0.25215141,124530.0,124520.0,0.0012901]
[1759812728556,0.25215141,124530.0,124520.0,0.2283301]
[1759812737835,0.24697141,124530.0,124520.0,0.2283301]
[1759812739608,0.24898141,124530.0,124520.0,0.2283301]
[1759812739813,0.25211141,124530.0,124520.0,0.2283301]
[1759812740017,0.25211141,124530.0,124520.0,0.0012901]
[1759812740389,0.25211141,124530.0,124520.0,0.2283301]
[1759812741345,0.33210821,124530.0,124520.0,0.0012901]
[1759812741546,0.3396309,124530.0,124520.0,0.0203701]
[1759812741743,0.33210821,124530.0,124520.0,0.0203701]
[1759812742568,0.35621033,124530.0,124520.0,0.0203701]
[1759812743968,0.35621033,124530.0,124520.0,0.0012901]
[1759812743969,0.86147005,124530.0,124520.0,0.0012901]
[1759812744170,0.92399675,124530.0,124520.0,0.0012901]
[1759812744415,1.17603675,124530.0,124520.0,0.0012901]
[1759812745115,1.17503675,124530.0,124520.0,0.0002901]
[1759812745323,1.18003675,124530.0,124520.0,0.0012901]
[1759812746198,1.17803675,124530.0,124520.0,0.0012901]
[1759812746602,1.18503675,124530.0,124520.0,0.0012901]
[1759812746950,0.46025895,124530.0,124520.0,0.0012901]
[1759812747158,1.24519092,124530.0,124520.0,0.0012901]
[1759812748995,0.41541632,124530.0,124520.0,0.0012901]
[1759812749172,0.16064257,124500.0,124490.0,0.08348]
[1759812749376,0.24376463,124500.0,124490.0,0.24418511]
[1759812749557,0.24376463,124500.0,124490.0,0.24478025]
[1759812750231,0.24476463,124500.0,124490.0,0.24578025]
[1759812750369,0.24476463,124500.0,124490.0,0.47282025]
[1759812753009,0.08412206,124500.0,124490.0,0.47282025]
[1759812753252,0.08412206,124500.0,124490.0,0.4969221]
[1759812753430,0.24476463,124500.0,124490.0,0.4969221]
[1759812754066,0.08412206,124500.0,124490.0,2.3714131]
[1759812754667,0.001,124500.0,124490.0,2.7114131]
[1759812762376,0.23424703,124530.0,124510.0,0.16061974]
[1759812762684,0.08312206,124520.0,124510.0,0.50061974]
[1759812762867,0.08312206,124520.0,124510.0,0.81129809]
[1759812763249,0.08312206,124520.0,124510.0,0.83539667]
[1759812763459,0.08312206,124520.0,124510.0,0.83639667]
[1759812763804,0.08312206,124520.0,124510.0,0.83839667]
[1759812764005,0.08312206,124520.0,124510.0,0.83739667]
[1759812765280,0.08412206,124520.0,124510.0,0.83839667]
[1759812767119,0.24473882,124520.0,124510.0,0.52791667]
[1759812767493,0.24993882,124520.0,124510.0,0.83839667]
[1759812768134,0.08412206,124520.0,124510.0,0.83839667]
[1759812774959,0.001,124520.0,124510.0,2.19070867]
[1759812777152,0.001,124520.0,124510.0,2.19062867]
[1759812785796,0.001,124520.0,124510.0,2.03703667]
[1759812785992,0.001,124520.0,124510.0,1.57238467]
[1759812786209,0.001,124520.0,124510.0,1.88274467]
[1759812786428,0.001,124520.0,124510.0,1.72261667]
[1759812786643,0.0062,124520.0,124510.0,1.23001667]
[1759812786877,0.0062,124520.0,124510.0,1.18640367]
[1759812787091,0.001,124520.0,124510.0,1.18640367]
[1759812787537,0.0062,124520.0,124510.0,0.52791667]
[1759812787722,0.0062,124520.0,124510.0,1.06175367]
[1759812787948,0.001,124520.0,124510.0,1.06175367]
[1759812791631,0.001,124520.0,124510.0,0.75139367]
[1759812791830,0.001,124520.0,124510.0,0.83827667]
[1759812792037,0.001,124520.0,124510.0,0.94400667]
[1759812792377,0.001,124520.0,124510.0,0.83827667]
[1759812793950,0.0062,124520.0,124510.0,1.00484867]
[1759812794179,0.001,124520.0,124510.0,1.00484867]
[1759812794358,0.001,124520.0,124510.0,0.94414867]
[1759812804104,0.001,124520.0,124510.0,0.94410867]
[1759812804905,0.001,124520.0,124510.0,0.63378867]
[1759812805218,0.00613,124520.0,124510.0,0.94410867]
[1759812805371,0.001,124520.0,124510.0,0.94410867]
[1759812805788,0.001,124520.0,124510.0,0.86066867]
[1759812806038,0.001,124520.0,124510.0,0.94410867]
[1759812806401,0.001,124520.0,124510.0,0.7456222]
[1759812806626,0.001,124520.0,124510.0,0.82280194]
[1759812806876,0.001,124520.0,124510.0,0.90624194]
[1759812808078,0.00613,124520.0,124510.0,0.90624194]
[1759812808483,0.001,124520.0,124510.0,0.59592194]
[1759812808683,0.00311,124520.0,124510.0,0.92131594]
[1759812808863,0.00613,124520.0,124510.0,0.92131594]
[1759812809077,0.001,124520.0,124510.0,0.92131594]
[1759812811786,0.001,124520.0,124510.0,0.90716794]
[1759812811982,0.001,124520.0,124510.0,0.80036994]
[1759812812206,0.001,124520.0,124510.0,0.90537794]
[1759812812427,0.001,124520.0,124510.0,0.49004994]
[1759812812593,0.001,124520.0,124510.0,0.80036994]
[1759812812789,0.08925206,124520.0,124510.0,0.49005986]
[1759812813052,0.08925206,124520.0,124510.0,0.77628128]
[1759812813442,0.08623206,124520.0,124510.0,0.77628128]
[1759812813645,0.08412206,124520.0,124510.0,0.77628128]
[1759812824666,0.001,124520.0,124510.0,0.77628128]
[1759812825152,0.001,124520.0,124510.0,0.80037862]
[1759812825625,0.001,124520.0,124510.0,0.80033841]
[1759812831646,0.001,124520.0,124510.0,1.26331641]
[1759812836656,0.001,124520.0,124510.0,0.96122335]
[1759812839276,0.001,124520.0,124510.0,1.30122335]
[1759812843672,0.001,124520.0,124510.0,1.41449731]
[1759812844641,0.00024548,124530.0,124520.0,0.50061676]
[1759812844843,0.00024548,124530.0,124520.0,3.19550276]
[1759812845250,0.00024548,124530.0,124520.0,3.21959489]
[1759812846106,0.00124548,124530.0,124520.0,3.22259489]
[1759812846665,0.00124548,124530.0,124520.0,3.22759489]
[1759812848255,0.00124548,124530.0,124520.0,3.25774679]
[1759812848979,0.00124548,124530.0,124520.0,3.03094679]
[1759812849171,0.00124548,124530.0,124520.0,3.67502679]
[1759812850827,0.00124548,124530.0,124520.0,3.75814885]
[1759812852039,0.00124548,124530.0,124520.0,3.67462885]
[1759812852236,0.00124548,124530.0,124520.0,3.75806885]
[1759812852436,0.00124548,124530.0,124520.0,3.11406885]
[1759812852674,0.00124548,124530.0,124520.0,3.75806885]
[1759812856063,0.00124548,124530.0,124520.0,3.11406885]
[1759812856199,0.00124548,124530.0,124520.0,3.75806885]
[1759812856824,0.00124548,124530.0,124520.0,3.67462885]
[1759812857034,0.00124548,124530.0,124520.0,3.75806885]
[1759812858885,0.00124548,124530.0,124520.0,3.11406885]
[1759812859111,0.00124548,124530.0,124520.0,3.34082885]
[1759812859311,0.00124548,124530.0,124520.0,3.75806885]
[1759812859938,0.00124548,124530.0,124520.0,3.11406885]
[1759812860142,0.00319548,124530.0,124520.0,3.75806885]
[1759812860299,0.00124548,124530.0,124520.0,3.75806885]
[1759812860690,0.00124548,124530.0,124520.0,3.11406885]
[1759812861022,0.00124548,124530.0,124520.0,3.75798885]
[1759812861434,0.00124548,124530.0,124520.0,3.34078885]
[1759812861612,0.00124548,124530.0,124520.0,3.75798885]
[1759812862801,0.00124548,124530.0,124520.0,2.95169585]
[1759812863005,0.00616548,124530.0,124520.0,1.66622089]
[1759812863624,0.00124548,124530.0,124520.0,1.66622089]
[1759812865373,0.00124548,124530.0,124520.0,1.24902089]
[1759812865574,0.00124548,124530.0,124520.0,1.66622089]
[1759812865852,0.00616548,124530.0,124520.0,1.02457789]
[1759812866080,0.00616548,124530.0,124520.0,0.71441789]
[1759812866278,0.00616548,124530.0,124520.0,0.74561089]
[1759812866661,0.00616548,124530.0,124520.0,0.73146189]
[1759812867020,0.00616548,124530.0,124520.0,1.04162189]
[1759812867219,0.00124548,124530.0,124520.0,1.04162189]
[1759812868414,0.00124548,124530.0,124520.0,0.95818189]
[1759812868588,0.00124548,124530.0,124520.0,1.04162189]
[1759812869691,0.00124548,124530.0,124520.0,0.73146189]
[1759812869864,0.00124548,124530.0,124520.0,0.95818189]
[1759812870066,0.00124548,124530.0,124520.0,1.04162189]
[1759812873039,0.00616548,124530.0,124520.0,1.04162189]
[1759812873715,0.00319548,124530.0,124520.0,1.04162189]
[1759812873916,0.00124548,124530.0,124520.0,1.04162189]
[1759812874133,0.00616548,124530.0,124520.0,1.04162189]
[1759812874957,0.00319548,124530.0,124520.0,1.04162189]
[1759812875124,0.00616548,124530.0,124520.0,1.04162189]
[1759812875541,0.00319548,124530.0,124520.0,1.04162189]
[1759812875744,0.00124548,124530.0,124520.0,1.04162189]
[1759812876519,0.00319548,124530.0,124520.0,1.04162189]
[1759812877014,0.00124548,124530.0,124520.0,1.04162189]
[1759812878382,0.00124548,124530.0,124520.0,0.73146189]
[1759812878596,0.00643548,124530.0,124520.0,0.84286889]
[1759812879404,0.16703935,124530.0,124520.0,0.19270889]
[1759812879612,0.25016141,124530.0,124520.0,0.09144]
[1759812879811,0.25016141,124530.0,124520.0,0.31816]
[1759812896570,0.25016141,124530.0,124520.0,0.31316]
[1759812897175,0.24916141,124530.0,124520.0,0.31016]
[1759812897405,0.25016141,124530.0,124520.0,0.31116]
[1759812904867,0.25016141,124530.0,124520.0,0.08344]
[1759812906031,0.25016141,124530.0,124520.0,0.31016]
[1759812907029,0.08436754,124530.0,124520.0,0.31016]
[1759812907445,0.24497141,124530.0,124520.0,0.47077676]
[1759812907588,0.24709141,124530.0,124520.0,0.47077676]
[1759812908749,0.25033141,124530.0,124520.0,0.47077676]
[1759812909863,0.25033141,124530.0,124520.0,0.31016]
[1759812910256,0.25033141,124530.0,124520.0,0.31516]
[1759812910440,0.29142399,124530.0,124520.0,0.005]
[1759812910642,0.29142399,124530.0,124520.0,0.31516]
[1759812910846,0.25033141,124530.0,124520.0,0.08844]
[1759812911163,0.25033141,124530.0,124520.0,0.31516]
[1759812912311,0.25033141,124530.0,124520.0,0.716701]
[1759812912669,0.25033141,124530.0,124520.0,0.406541]
[1759812912981,0.25033141,124530.0,124520.0,0.633261]
[1759812913326,0.82794583,124530.0,124520.0,0.633261]
[1759812914366,0.33032821,124530.0,124520.0,0.633261]
[1759812918358,0.25033141,124530.0,124520.0,0.633261]
[1759812919535,0.74794903,124530.0,124520.0,0.633261]
[1759812919738,0.25033141,124530.0,124520.0,0.633261]
[1759812920372,0.24933141,124530.0,124520.0,0.633261]
[1759812921019,0.25333141,124530.0,124520.0,0.634261]
[1759812921754,0.33332821,124530.0,124520.0,0.407541]
[1759812921965,0.33332821,124530.0,124520.0,0.634261]
[1759812922171,0.33932821,124530.0,124520.0,0.634261]
[1759812931260,0.83694583,124530.0,124520.0,0.634261]
[1759812932525,0.33932821,124530.0,124520.0,0.634261]
[1759812936589,0.83694583,124530.0,124520.0,0.634261]
[1759812937597,0.83694583,124530.0,124520.0,0.407541]
[1759812937807,0.83694583,124530.0,124520.0,0.634261]
[1759812938931,0.85948265,124530.0,124520.0,0.634261]
[1759812939261,0.83694583,124530.0,124520.0,0.634261]
[1759812939460,0.87679946,124530.0,124520.0,0.634261]
[1759812939741,0.36187009,124530.0,124520.0,0.634261]
[1759812939948,0.85948771,124530.0,124520.0,0.634261]
[1759812940117,0.37918666,124530.0,124520.0,0.634261]
[1759812940315,0.87680428,124530.0,124520.0,0.634261]
[1759812940725,0.88835768,124530.0,124520.0,0.634261]
[1759812943146,0.37918666,124530.0,124520.0,0.634261]
[1759812955288,0.37920072,124530.0,124520.0,0.634261]
[1759812970611,0.37920072,124530.0,124520.0,0.407541]
[1759812970821,0.90713175,124530.0,124520.0,0.407541]
[1759812971010,1.24713175,124530.0,124520.0,0.634221]
[1759812971210,1.74490651,124530.0,124520.0,0.634221]
[1759812971415,1.76901049,124530.0,124520.0,0.630971]
[1759812971613,1.27123573,124530.0,124520.0,0.630971]
[1759812972428,1.27123573,124530.0,124520.0,0.404291]
[1759812972623,1.8156118,124530.0,124520.0,0.404291]
[1759812974299,1.79401049,124530.0,124520.0,0.404291]
[1759812976676,1.8156118,124530.0,124520.0,0.404291]
[1759812978035,1.81559544,124530.0,124520.0,0.404291]
[1759812978982,1.8155926,124530.0,124520.0,0.404291]
[1759812979222,1.81559221,124530.0,124520.0,0.404291]
[1759812981094,1.29621614,124530.0,124520.0,0.404291]
[1759812981297,1.52289614,124530.0,124520.0,0.404291]
[1759812981709,1.02512138,124530.0,124520.0,0.404291]
[1759812981852,1.52289614,124530.0,124520.0,0.404291]
[1759812983665,1.52288966,124530.0,124520.0,0.404291]
[1759812984079,1.29620966,124530.0,124520.0,0.404291]
[1759812984303,1.52288966,124530.0,124520.0,0.404291]
[1759812987704,1.29620966,124530.0,124520.0,0.404291]
[1759812987939,1.52288966,124530.0,124520.0,0.404291]
[1759812991583,1.52288743,124530.0,124520.0,0.404291]
[1759812993422,1.52288838,124530.0,124520.0,0.404291]
[1759812995340,1.54448969,124530.0,124520.0,0.404291]
[1759812996122,1.01847493,124530.0,124520.0,0.406351]
[1759812996358,0.99475362,124530.0,124520.0,0.406351]
[1759812996818,0.99691362,124530.0,124520.0,0.406351]
[1759812996950,0.99691362,124530.0,124520.0,0.404291]
[1759812997155,0.99990362,124530.0,124520.0,0.404291]
[1759812997358,1.49468838,124530.0,124520.0,0.404291]
[1759812997602,1.48717609,124530.0,124520.0,0.404291]
[1759812997809,1.49769142,124530.0,124520.0,0.404291]
[1759813000453,1.51929273,124530.0,124520.0,0.404291]
[1759813000612,1.49769142,124530.0,124520.0,0.404291]
[1759813002327,1.51929273,124530.0,124520.0,0.404291]
[1759813002762,1.51930378,124530.0,124520.0,0.404291]
[1759813003393,1.49770247,124530.0,124520.0,0.404291]
[1759813004581,0.65794901,124530.0,124520.0,0.633041]
[1759813005109,0.65996901,124530.0,124520.0,0.633041]
[1759813005272,0.65996901,124530.0,124520.0,0.630971]
[1759813005651,0.66316901,124530.0,124520.0,0.630971]
[1759813007310,0.66316901,124530.0,124520.0,0.404291]
[1759813007512,1.24094057,124530.0,124520.0,0.630931]
[1759813008157,0.74316581,124530.0,124520.0,0.630931]
[1759813012352,0.74316581,124530.0,124520.0,0.404291]
[1759813012558,1.24094057,124530.0,124520.0,0.630931]
[1759813012882,1.24094057,124530.0,124520.0,0.404291]
[1759813013078,1.24094057,124530.0,124520.0,0.630931]
[1759813014290,1.46758057,124530.0,124520.0,0.630931]
[1759813014491,0.96980581,124530.0,124520.0,0.630931]
[1759813015990,0.74316581,124530.0,124520.0,0.630931]
[1759813018126,0.65794901,124530.0,124520.0,0.632941]
[1759813018336,0.28559072,124530.0,124520.0,0.635961]
[1759813018538,0.25397141,124530.0,124520.0,0.635961]
[1759813018966,0.25397141,124530.0,124520.0,0.632941]
[1759813019119,0.25397141,124530.0,124520.0,0.635961]
[1759813020434,0.25397141,124530.0,124520.0,0.632941]
[1759813020620,0.25397141,124530.0,124520.0,0.64405921]
[1759813025357,0.25397141,124530.0,124520.0,0.64707921]
[1759813026186,0.24597141,124530.0,124520.0,0.64405921]
[1759813027278,0.08536754,124530.0,124520.0,0.80769597]
[1759813027704,0.08536754,124530.0,124520.0,0.83179435]
[1759813028053,0.08536754,124530.0,124520.0,0.66720217]
[1759813030949,0.01,124530.0,124520.0,0.93530817]
[1759813031149,0.01,124530.0,124520.0,1.27530817]
[1759813031961,0.005,124550.0,124540.0,0.16059097]
[1759813032156,0.08812206,124550.0,124540.0,0.47063097]
[1759813032336,0.005,124550.0,124540.0,1.41939797]
[1759813032555,0.00588491,124550.0,124540.0,1.78348871]
[1759813032953,0.00588491,124550.0,124540.0,1.78448871]
[1759813033159,0.00893462,124550.0,124540.0,1.78448871]
[1759813033567,0.00893462,124550.0,124540.0,1.47444871]
[1759813033766,0.01193462,124550.0,124540.0,1.78448871]
[1759813034059,0.00893462,124550.0,124540.0,1.78448871]
[1759813034254,0.00593462,124550.0,124540.0,1.78448871]